{"text_format":"1","workbook":"xlsx","n_sheets":1,"sheets":["Prototype A1"],"not_rendered":{"charts":0,"images":0,"macros":1,"external_links":0,"defined_names":22,"comments":0,"pivot_tables":0},"unopened":[],"bounds":{"document_bytes":16777216,"sheet_cells":100000,"rows_first":2000,"rows_last":500,"rows_between":2000,"halvings":0,"cell_chars":16384,"cell_head_chars":4096},"cells_cut":0,"cells_raw":0,"read":"whole","date_system":"1900"}

{"sheet":"Prototype A1","index":0,"n_rows":84,"n_cols":15,"rows_kept":84,"cut":false,"hidden":false,"merged":[[3,10,3,14],[3,5,3,9]]}
[]
["Output Results for Performance Based Code Compliance Reference Design Tests (Envelope Requirements shall use U-Factor for walls and Roofs, and F-Factor for slab-on-grade floors)"]
[]
[null,null,null,null,null,"Test Run 1 (Climate Zone 1)",null,null,null,null,"Test Run 2 (Climate Zone 2)"]
[null,"TYPE","Description of Components","UNITS","MIN / MAX","Sizing Results","Reference Results for Baseline model (ASHRAE)","Compliance Software Baseline Model Results (ASHRAE)","Reference Results for Baseline model (FEC)","Compliance Software Baseline Model Results (FEC)","Sizing Results","Reference Results for Baseline model (ASHRAE)","Compliance Software Baseline Model Results (ASHRAE)","Reference Results for Baseline model (FEC)","Compliance Software Baseline Model Results (FEC)"]
["Envelope Components"]
[null,"Wall","Exterior Wall: U-Value","Btu/(h-ft2-°F)","MAX",null,8.8999999999999996E-2,8.8999999999999996E-2,6.4000000000000001E-2,6.4000000000000001E-2,null,8.8999999999999996E-2,8.8999999999999996E-2,6.4000000000000001E-2,6.4000000000000001E-2]
[null,"Wall","Exterior Wall: Thermal Capacity","(Btu/ft2-°F)",null,null,3.94,3.94,"NA","NA",null,3.94,3.94,"NA","NA"]
[null,"Wall","Exterior Wall: Solar Reflectance","-","MIN",null,"NA","NA","NR","NR",null,"NA","NA","NR","NR"]
[null,"Wall","Exterior Wall: Solar Absorptance","-","MAX",null,"NA","NA",0.75,0.75,null,"NA","NA",0.75,0.75]
[null,"Wall","Exterior Wall: Thermal Emittance","-","MIN",null,"NA","NA",0.9,0.9,null,"NA","NA",0.9,0.9]
[null,"Floor","Floor Slab-on-grade: Unheated F-factor","Btu/(h-ft-°F)","MAX",null,0.73,0.73,0.73,0.73,null,0.73,0.73,0.73,0.73]
[null,"Floor","Floor Slab-on-grade: Thermal Capacity","(Btu/ft2-°F)",null,null,9.33,9.33,"NA","NA",null,9.33,9.33,"NA","NA"]
[null,"Roof","Exterior Roof: U-Value","Btu/(h-ft2-°F)","MAX",null,6.3E-2,6.3E-2,4.8000000000000001E-2,4.8000000000000001E-2,null,4.8000000000000001E-2,4.8000000000000001E-2,4.8000000000000001E-2,4.8000000000000001E-2]
[null,"Roof","Exterior Roof: Thermal Capacity","(Btu/ft2-°F)",null,null,2.79,2.79,"NA","NA",null,2.79,2.79,"NA","NA"]
[null,"Roof","Exterior Roof: Solar Reflectance","-","MIN",null,0.55000000000000004,0.55000000000000004,"NA","NA",null,0.55000000000000004,0.55000000000000004,"NA","NA"]
[null,"Roof","Exterior Roof: Solar Absorptance","-","MAX",null,"NR","NR",0.75,0.75,null,"NR","NA",0.75,0.75]
[null,"Roof","Exterior Roof: Thermal Emittance","-","MIN",null,0.75,0.75,0.9,0.9,null,0.75,0.75,0.9,0.9]
[null,"Fenestration","Exterior Window: U-Value","Btu/(h-ft2-°F)","MAX",null,1.2,1.2,0.5,0.5,null,0.75,0.75,0.5,0.5]
[null,"Fenestration","Exterior Window: SHGC","-","MAX",null,0.25,0.25,0.25,0.25,null,0.25,0.25,0.25,0.25]
[null,"Fenestration","Exterior Window: WWR","(%)","Max",null,40,0.4,40,0.4,null,40,0.4,30,30]
[null,"Fenestration","Window Area"]
[null,"Fenestration","South Window Area","ft2","MAX",null,550,550,550,550,null,550,550,550,550]
[null,"Fenestration","East Window Area","ft2","MAX",null,550,550,550,550,null,550,550,550,550]
[null,"Fenestration","North Window Area","ft2","MAX",null,550,550,550,550,null,550,550,550,550]
[null,"Fenestration","West Window Area","ft2","MAX",null,550,550,550,550,null,550,550,550,550]
[null,"Skylight","Skylight Area","ft2","MAX",null,230.41399999999999,230.4,83,83,null,230,230,83,83]
[null,"Skylight","Skylight: U-Value","Btu/(h-ft2-°F)","MAX",null,1.98,1.98,0.75,0.75,null,1.98,1.36,0.65,0.65]
[null,"Skylight","Skylight: SHGC","-","MAX",null,0.19,0.19,0.35,0.35,null,0.19,0.19,0.35,0.35]
[null,"Skylight","Skylight: Skylight-Roof Ratio","(%)","MAX",null,1.02,1.02,0.4,0.4,null,1.02,1.02,0.36799999999999999,0.36799999999999999]
[null,null," "]
["Interior Lighting"]
[null,"Lighting","LPD: Building Area Method","W/ft2","MAX",null,0.9,0.9,0.9,0.9,null,0.9,0.9,0.9,0.9]
[null,null,null,null,""]
["Exterior Lighting",null,null,null,""]
[null,"Lighting","Total Lighting Allowance","W","MAX",null,870,870,870,870,null,870,870,870,870]
[null,null,null,null,""]
["Internal Loads"]
[null,"Equipment","Internal Electric Power Density","W/ft2","-",null,1,1,1,1,null,1,1,1,1]
[]
["HVAC System"]
[null,null,"HVAC System Type",null,null,null,"Packaged Roof Top Heat Pump",null,"Packaged Roof Top Heat Pump",null,null,"Packaged Roof Top Heat Pump",null,"Packaged Roof Top Heat Pump"]
[null,null,"Electric Resistance Heating Efficiency (Et)","%",null,null,100,100,100,100,null,100,100,100,100]
[]
[null,null,"Cooling Minimum Efficiency:"]
[null,"Cooling DX","North Zone System Efficiency: ASHRAE","EER / IEER","MIN",80.61,"11.0 / 11.2","11 / 11.2",null,null,78.790999999999997,"11.0 / 11.2","11 / 11.2"]
[null,"Cooling DX","North Zone System Efficiency: FEC","EER / IEER","MIN",76.242000000000004,null,null,"11.0 / 11.2","11 / 11.2",77.715000000000003,null,null,"11.0 / 11.2","11 / 11.2"]
[]
[null,"Cooling DX","South Zone System Efficiency: ASHRAE","EER / IEER","MIN",84.388000000000005,"11.0 / 11.2","11 / 11.2",null,null,87.739000000000004,"11.0 / 11.2","11 / 11.2"]
[null,"Cooling DX","South Zone System Efficiency: FEC","EER / IEER","MIN",79.313000000000002,null,null,"11.0 / 11.2","11 / 11.2",85.855999999999995,null,null,"11.0 / 11.2","11 / 11.2"]
[]
[null,"Cooling DX","East Zone System Efficiency: ASHRAE","EER / IEER","MIN",93.302999999999997,"11.0 / 11.2","11 / 11.2",null,null,90.6,"11.0 / 11.2","11 / 11.2"]
[null,"Cooling DX","East Zone System Efficiency: FEC","EER / IEER","MIN",89.063999999999993,null,null,"11.2 / 11.4","11 / 11.2",89.128,null,null,"11.0 / 11.2","11 / 11.2"]
[]
[null,"Cooling DX","West Zone System Efficiency: ASHRAE","EER / IEER","MIN",93.625,"11.0 / 11.2","11 / 11.2",null,null,95.183999999999997,"11.0 / 11.2","11 / 11.2"]
[null,"Cooling DX","West Zone System Efficiency: FEC","EER / IEER","MIN",88.927999999999997,null,null,"11.2 / 11.4","11 / 11.2",93.986000000000004,null,null,"11.0 / 11.2","11 / 11.2"]
[]
[null,"Cooling DX","Core Zone System Efficiency: ASHRAE","EER / IEER","MIN",474.67700000000002,"9.5 / 9.6","9.5 / 9.6",null,null,480.34100000000001,"9.5 / 9.6","9.5 / 9.6"]
[null,"Cooling DX","Core Zone System Efficiency: FEC","EER / IEER","MIN",466.267,null,null,"9.5 / 9.6","9.5 / 9.6",482.649,null,null,"9.5 / 9.6","9.5 / 9.6"]
[]
[]
[null,null,"Air Economizer (Yes, or No):"]
[null,"Air Economizer","North Zone System Economizer: ASHRAE ","-","-",{"$f":"CoolCapNorthZone","v":80.61},"No","No",null,null,{"$f":"CoolCapNorthZoneCZ2","v":78.790999999999997},"Yes","Yes"]
[null,"Air Economizer","North Zone System Economizer: FEC","-","-",{"$f":"CoolCapNorthZoneIECC","v":76.242000000000004},null,null,"No","No",{"$f":"CoolCapNorthZoneIECCCZ2","v":77.715000000000003},null,null,"Yes","Yes"]
[]
[null,"Air Economizer","South Zone System Economizer: ASHRAE ","-","-",{"$f":"CoolCapSouthZone","v":84.388000000000005},"No","No",null,null,{"$f":"CoolCapSouthZoneCZ2","v":87.739000000000004},"Yes","Yes"]
[null,"Air Economizer","South Zone System Economizer: FEC","-","-",{"$f":"CoolCapSouthZoneIECC","v":79.313000000000002},null,null,"No","No",{"$f":"CoolCapSouthZoneIECCCZ2","v":85.855999999999995},null,null,"Yes","Yes"]
[]
[null,"Air Economizer","East Zone System Economizer: ASHRAE ","-","-",{"$f":"CoolCapEastZone","v":93.302999999999997},"No","No",null,null,{"$f":"CoolCapEastZoneCZ2","v":90.6},"Yes","Yes"]
[null,"Air Economizer","East Zone System Economizer: FEC","-","-",{"$f":"CoolCapEastZoneIECC","v":89.063999999999993},null,null,"No","No",{"$f":"CoolCapEastZoneIECCCZ2","v":89.128},null,null,"Yes","Yes"]
[]
[null,"Air Economizer","West Zone System Economizer: ASHRAE ","-","-",{"$f":"CoolCapWestZone","v":93.625},"No","No",null,null,{"$f":"CoolCapWestZoneCZ2","v":95.183999999999997},"Yes","Yes"]
[null,"Air Economizer","West Zone System Economizer: FEC","-","-",{"$f":"CoolCapWestZoneIECC","v":88.927999999999997},null,null,"No","No",{"$f":"CoolCapWestZoneIECCCZ2","v":93.986000000000004},null,null,"Yes","Yes"]
[]
[null,"Air Economizer","Core Zone System Economizer: ASHRAE ","-","-",{"$f":"CoolCapCoreZone","v":474.67700000000002},"No","No",null,null,{"$f":"CoolCapCoreZoneCZ2","v":480.34100000000001},"Yes","Yes"]
[null,"Air Economizer","Core Zone System Economizer: FEC","-","-",{"$f":"CoolCapCoreZoneIECC","v":466.267},null,null,"No","No",{"$f":"CoolCapCoreZoneIECCCZ2","v":482.649},null,null,"Yes","Yes"]
[]
[]
["Service Water Heating"]
[null,"SWH","SWH Type",null,null,null,"Storage Water Heater",null,"Storage Water Heater",null,null,"Storage Water Heater",null,"Storage Water Heater"]
[null,"SWH","Fuel Type",null,null,null,"Electric",null,"Electric",null,null,"Electric",null,"Electric"]
[null,"SWH","Thermal Efficiency:"]
[null,"SWH","Size <= 12 kW, Energy Factor (EF)"," - ","MIN",11,0.86439999999999995,0.86439999999999995,0.86439999999999995,0.86439999999999995,14]
[null,"SWH","Size > 12 kW, Size > 20 gal, Standby Loss","Btu/h","MAX",{"$f":"SWHCapacity","v":11},null,null,null,null,{"$f":"SWHCapacityCZ2","v":14},293,293,293,293]